Cogmind - Beta 16.1 @@@ ROGUE MODE // 2026.03.22 @ 17:28:49 Player: star Result: Destroyed by H-66 Slayer with Gauss Rifle Performance ------------- Evolutions (4) 2000 Regions Visited (4) 800 Robots Destroyed (31) 155 Value Destroyed (1295) 1295 Prototype IDs (14) 280 Alien Tech Used (0) 0 Bonus (680) 680 TOTAL SCORE: 5210 Bonus ------- Registered with UFD 300 Met Optimus in HQ 500 Friendly Fire -120 Cogmind --------- Core Integrity 0/850 Matter 48/300 Energy 95/100 System Corruption 13% Temperature Cool (0) Movement Walking (190) Ox1 Location -6/Factory Parts ------- > --- POWER (2+3) ------ (None) > --- PROPULSION (4) --- Carbon-fiber Leg > --- UTILITY (7) ------ Large Storage Unit Improved Signal Interpreter Advanced Targeting Computer Makeshift Hacking Suite Improved System Shield Power Bank > --- WEAPON (2) ------- Remote Datajack > --- INVENTORY (15) --- Micro Nuclear Core Large Storage Unit Thermal Shield Remote Force Field Relay Coupler [NC] (22) Relay Coupler [NC] (22) Relay Coupler [Grunt] (22) Recalibrator Recalibrator Missile Launcher CPS Tube (2) Multitool Peak State ------------ > --- POWER ------------ Light Angular Momentum Engine Fission Core > --- PROPULSION ------- Carbon-fiber Leg Carbon-fiber Leg Flexi-carbon Leg > --- UTILITY ---------- Large Storage Unit Advanced Sensor Array Improved Signal Interpreter Advanced Targeting Computer Makeshift Hacking Suite Improved System Shield Power Bank > --- WEAPON ----------- Hypervelocity Gauss Rifle Advanced Assault Cannon > --- INVENTORY -------- Large Storage Unit Remote Force Field Recalibrator Recalibrator Assault Cannon Missile Launcher Remote Datajack CPS Tube Multitool [Rating: 63] Favorites ----------- Power Light Angular Momentum Engine Engine Light Angular Momentum Engine Power Core Fusion Compressor Propulsion Compact Wheel Treads Improved Medium Treads Leg Carbon-fiber Leg Wheel Compact Wheel Utility Makeshift Hacking Suite Device Power Bank Storage Large Storage Unit Processor Improved Signal Interpreter Hackware Makeshift Hacking Suite Protection Makeshift Light Armor Plating Weapon Mining Claw Ballistic Gun Hypervelocity Gauss Rifle Ballistic Cannon Advanced Assault Cannon Launcher Grenade Launcher Special Weapon Junk Cannon Slashing Weapon Mining Claw Piercing Weapon Heavy Pick Build | -11 -10 -10 -9 -6 ------- Run | Yrd Mat Sub Scr Fac Slots Evolved 8 | . . . . 8 Power 1 | . . . . 1 Propulsion 2 | . . . . 2 Utility 5 | . . . . 5 Weapon . | . . . . . Parts Attached 55 | 6 . 12 3 34 Power 10 | 1 . 2 . 7 Engine 7 | 1 . 2 . 4 Core 3 | . . . . 3 Reactor . | . . . . . Propulsion 12 | 2 . 3 . 7 Treads 1 | . . . . 1 Leg 3 | . . . . 3 Wheel 8 | 2 . 3 . 3 Hover . | . . . . . Flight . | . . . . . Utility 17 | 1 . 2 2 12 Device 6 | . . 1 . 5 Storage 4 | 1 . . 2 1 Processor 3 | . . . . 3 Hackware 3 | . . . . 3 Protection 1 | . . 1 . . Artifact . | . . . . . Weapon 16 | 2 . 5 1 8 Energy Gun . | . . . . . Energy Cannon . | . . . . . Ballistic Gun 5 | 2 . . . 3 Ballistic Cannon 2 | . . . . 2 Launcher 2 | . . 2 . . Special Weapon 3 | . . 1 1 1 Impact Weapon . | . . . . . Slashing Weapon 2 | . . 2 . . Piercing Weapon 2 | . . . . 2 Special Melee Weapon . | . . . . . Unidentified Prototypes 1 | . . . 1 . Corrupted Parts 1 | . . . . 1 System Corruption 4 | . . . . 4 Parts Lost 26 | . . 2 . 24 Power 8 | . . 1 . 7 Propulsion 7 | . . . . 7 Utility 4 | . . . . 4 Weapon 7 | . . 1 . 6 Highest Loss Streak 7 | . . 1 . 7 To Critical Strikes . | . . . . . Average Backups 8 | . 2 6 8 10 Power . | . . . . 1 Propulsion . | . . . . . Utility 3 | . . 2 4 4 Weapon 2 | . 2 3 2 2 Tool/Special . | . . . . . Unused Backups 19 | . . 3 1 15 Power 1 | . . . . 1 Propulsion . | . . . . . Utility 14 | . . 2 1 11 Weapon 2 | . . 1 . 1 Tool/Special 2 | . . . . 2 Average Slot Usage (%) 82 | . 85 95 93 71 Engine 8 | . 14 13 14 4 Core 1 | . . . . 3 Leg 3 | . . . . 7 Wheel 15 | . 28 28 28 4 Device 5 | . . 1 . 10 Storage 9 | . 14 14 14 4 Processor 4 | . . . . 9 Hackware 6 | . . . . 11 Protection 6 | . . 9 14 1 Ballistic Gun 3 | . 28 5 . 3 Ballistic Cannon 1 | . . . . 2 Special Weapon 2 | . . . 5 2 Slashing Weapon 8 | . . 21 16 . Peak Build Rating 63 | 6 6 14 26 63 Average Rating 33 | 5 6 10 18 51 On Entrance 10 | . 6 6 13 26 Avg Prop Armor Cover (%) 4 | . . 6 . 3 Naked Turns . | . . . . . Heaviest Build 63 | 11 11 18 63 55 Greatest Support 50 | 32 32 40 26 50 Greatest Overweight (x) 14 | . . 1 2 14 Average Overweight (x) . | . . . 1 . Largest Inventory Capacity 20 | 8 8 8 20 15 Average Capacity 12 | 6 8 8 15 13 Most Carried 15 | . 4 8 12 15 Average Carried 9 | . 2 7 9 10 Final Capacity 15 | 8 8 8 15 15 Final Carried 12 | . 4 8 11 12 Class Distribution -------------------- 48% | Mutant 48% | Hacker-Mutant Dominant Class ---------------- Mutant | -10/Materials Mutant | -10/Subcaves Mutant | -9/Scraptown Hacker-Mutant | -6/Factory Resources | -11 -10 -10 -9 -6 ----------- Run | Yrd Mat Sub Scr Fac Matter Collected 1690 | 224 . 271 20 1175 Remotely . | . . . . . Salvage Created 1481 | . . 198 . 1283 Parts 66 | . . 10 . 56 Haulers Intercepted 1 | . . . . 1 Recyclers Shooed 8 | . . . . 8 Parts Field Recycled . | . . . . . Retrieved Matter . | . . . . . Parts Self-Destructed 6 | . . 6 . . Prevented . | . . . . . Parts Restored . | . . . . . Kills | -11 -10 -10 -9 -6 ------- Run | Yrd Mat Sub Scr Fac Combat Hostiles Destroyed 22 | . . 5 . 17 Melee 7 | . . 3 . 4 Guns 5 | . . . . 5 Cannons 8 | . . . . 8 AOE 2 | . . 2 . . Classes Destroyed 13 | . . 5 . 8 Worker 3 | . . . . 3 Builder 2 | . . . . 2 Hauler 1 | . . . . 1 Recycler 2 | . . . . 2 Operator 1 | . . . . 1 Grunt 9 | . . 2 . 7 Protector 1 | . . . . 1 Sentry 2 | . . 1 . 1 Hunter 3 | . . . . 3 Programmer 5 | . . . . 5 Artisan 1 | . . 1 . . Cobbler 1 | . . 1 . . Subdweller 2 | . . 2 . . Best Kill Streak 4 | . . 2 . 4 Combat Bots Only 3 | . . 2 . 3 Max Kills in Single Turn 1 | . . 1 . 1 Gunslinging . | . . . . . Exploded 1 | . . 1 . . Melee 1 | . . 1 . 1 Uniques/NPCs Destroyed . | . . . . . Combat | -11 -10 -10 -9 -6 -------- Run | Yrd Mat Sub Scr Fac Hostile Shots Fired 315 | . . 24 . 291 Missed 87 | . . 8 . 79 Hits 228 | . . 16 . 212 Projectile 228 | . . 16 . 212 Critical Strikes 4 | . . . . 4 Damage Taken 3766 | . . 255 . 3511 Core 914 | . . 55 . 859 Absorbed by Shields . | . . . . . Core Remaining (%) 89 | 100 . . 78 . Volleys Fired 101 | . . 5 . 96 Largest 2 | . . 2 . 2 Hottest 73 | . . 60 . 73 Shots Fired 152 | . . 7 . 145 Gun 65 | . . . . 65 Cannon 55 | . . . . 55 Launcher 7 | . . 7 . . Special 25 | . . . . 25 Kinetic 120 | . . . . 120 Thermal 2 | . . . . 2 Explosive 7 | . . 7 . . Electromagnetic . | . . . . . Impact 21 | . . . . 21 Robot Hit Streak 11 | . . 3 . 11 Robot Miss Streak 3 | . . 2 . 3 Penetration Max 3 | . . . . 3 Secondary Targets . | . . . . . Shots Hit Robots 118 | . . 12 . 106 Core Hits 57 | . . 8 . 49 Critical Kills 8 | . . . . 8 Critical Parts Destroyed 13 | . . . . 13 Critical Strikes 23 | . . . . 23 Destroy 19 | . . . . 19 Blast 1 | . . . . 1 Smash 2 | . . . . 2 Impale 1 | . . . . 1 Melee Attacks 44 | . . 26 . 18 Impact . | . . . . . Slashing 26 | . . 26 . . Piercing 18 | . . . . 18 Sneak Attacks 7 | . . 4 . 3 Combat Hostiles 1 | . . 1 . . Follow-up Attacks . | . . . . . Damage Inflicted 3715 | . . 796 . 2919 Guns 447 | . . . . 447 Cannons 971 | . . . . 971 Explosions 668 | . . 513 . 155 Melee 798 | . . 283 . 515 Ramming 40 | . . . . 40 Kinetic 1418 | . . . . 1418 Thermal . | . . . . . Explosive 668 | . . 513 . 155 Electromagnetic . | . . . . . Impact 791 | . . . . 791 Slashing 283 | . . 283 . . Piercing 515 | . . . . 515 Highest Corruption 13 | . . . . 13 Average Corruption 7 | . . . . 7 Corruption Purged . | . . . . . Corruption Blocked . | . . . . . Effects 58 | . . . . 58 Message Errors 14 | . . . . 14 Matter Fused 18 | . . . . 18 Heat Flow Errors 3 | . . . . 3 Energy Discharges 5 | . . . . 5 Parts Rejected 4 | . . . . 4 Data Loss (minor) 6 | . . . . 6 Data Loss (major) 4 | . . . . 4 Misfires 1 | . . . . 1 Alerts 1 | . . . . 1 Misdirections 1 | . . . . 1 Weapon Failures 1 | . . . . 1 Overload Shots . | . . . . . Overflow Damage 448 | . . 25 . 423 Projectiles 319 | . . . . 319 Explosions 12 | . . . . 12 Melee 117 | . . 25 . 92 Knockbacks 9 | . . . . 9 Impact 4 | . . . . 4 Kinetic 4 | . . . . 4 Secondary 1 | . . . . 1 Self-Inflicted Damage 5 | . . . . 5 Shots . | . . . . . Rammed 5 | . . . . 5 Targets Rammed 9 | . . . . 9 Kicked 4 | . . . . 4 Crushed . | . . . . . Highest Temperature 196 | . . . . 196 Average Temperature 22 | . . . . 22 Received Heat Transfer 390 | . . 81 . 309 Siege Activations . | . . . . . Martial Activations . | . . . . . Shielding Activations . | . . . . . Robots Disrupted . | . . . . . Combat Hostiles . | . . . . . Robots Corrupted 1 | . . . . 1 Combat Hostiles . | . . . . . Parts Fried 4 | . . . . 4 Impact Corruptions 5 | . . . . 5 Robots Melted . | . . . . . Combat Hostiles . | . . . . . Parts Melted . | . . . . . Heat Transferred . | . . . . . Parts Sabotaged . | . . . . . Parts Stolen . | . . . . . Parts Stripped . | . . . . . Power Chain Reactions . | . . . . . Alert | -11 -10 -10 -9 -6 ------- Run | Yrd Mat Sub Scr Fac Maximum Alert Level . | . . . . . Low Security (%) 100 | 100 100 . . 100 Level 1 . | . . . . . Level 2 . | . . . . . Level 3 . | . . . . . Level 4 . | . . . . . Level 5 . | . . . . . High Security . | . . . . . Max Security . | . . . . . Peak Influence 167 | . . . . 167 Initial . | . . . . . Average 48 | . . . . 51 Influence Increases 733 | . . 115 . 618 Destroy 0b10 Robot/C 380 | . . 60 . 320 Destroy 0b10 Robot/NC 50 | . . . . 50 Destroy Leader 110 | . . 10 . 100 Disable Machine 90 | . . . . 90 Destroy Structure 43 | . . . . 43 Lose Combat Pursuer 60 | . . 45 . 15 Influence Decreases 639 | . . 115 . 524 Time Decay 457 | . . 105 . 352 Lost Part 182 | . . 10 . 172 Squads Dispatched 8 | . . . . 8 Investigation 1 | . . . . 1 Extermination 5 | . . . . 5 Reinforcement 2 | . . . . 2 Assault . | . . . . . Garrison . | . . . . . Intercept . | . . . . . Searches Triggered . | . . . . . Construction Impeded . | . . . . . Haulers Reinforced 1 | . . . . 1 Active Scanning Responses . | . . . . . Cargo Convoy Interrupts 1 | . . . . 1 Stealth | -11 -10 -10 -9 -6 --------- Run | Yrd Mat Sub Scr Fac Distress Signals 2 | . . . . 2 Communications Jammed . | . . . . . Distress Signals . | . . . . . Times Spotted 39 | . . 7 . 32 Peak Tracking Total 3 | . . 2 . 3 Tactical Retreats 3 | . . 2 . 1 Traps | -11 -10 -10 -9 -6 ------- Run | Yrd Mat Sub Scr Fac Traps Triggered 2 | . . . . 2 Indirectly . | . . . . . Trap Hack Attempts . | . . . . . Triggered . | . . . . . Disarmed . | . . . . . Reprogrammed . | . . . . . Reused . | . . . . . Traps Extracted . | . . . . . Installed . | . . . . . Triggered . | . . . . . Machines | -11 -10 -10 -9 -6 ---------- Run | Yrd Mat Sub Scr Fac Machines Disabled 7 | . . 1 . 6 Max in Single Turn 5 | . . 1 . 5 Garrison Access 1 | . . . . 1 Machines Repaired . | . . . . . Machines Dismantled . | . . . . . Machines Sabotaged . | . . . . . Overloaded Fab Kills . | . . . . . Hacking | -11 -10 -10 -9 -6 --------- Run | Yrd Mat Sub Scr Fac Machines Accessed 5 | . . 2 1 2 Terminals 1 | . . . . 1 Fabricators . | . . . . . Repair Stations . | . . . . . Recycling Units . | . . . . . Scanalyzers . | . . . . . Garrison Access 1 | . . . . 1 Total Hacks 9 | . . 4 2 3 Successful 7 | . . 4 2 1 Failed 2 | . . . . 2 Catastrophic . | . . . . . Database Lockouts . | . . . . . Manual 2 | . . . . 2 Terminals 2 | . . . . 2 Fabricators . | . . . . . Repair Stations . | . . . . . Recycling Units . | . . . . . Scanalyzers . | . . . . . Garrison Access 1 | . . . . 1 Terminal Hacks 6 | . . 4 2 . Record 5 | . . 3 2 . Proto ID Catalog 1 | . . 1 . . Fabricator Hacks . | . . . . . Repair Station Hacks . | . . . . . Recycling Unit Hacks . | . . . . . Scanalyzer . | . . . . . Garrison Access Hacks 1 | . . . . 1 Seal Access 1 | . . . . 1 Unauthorized Hacks . | . . . . . Terminals . | . . . . . Fabricators . | . . . . . Repair Stations . | . . . . . Recycling Units . | . . . . . Scanalyzers . | . . . . . Garrison Access . | . . . . . Data Cores Recovered . | . . . . . Used . | . . . . . Hacking Detections . | . . . . . Full Trace Events . | . . . . . Feedback Events . | . . . . . Feedback Blocked . | . . . . . Robot Schematics Acquired . | . . . . . Robots Built . | . . . . . Authchips . | . . . . . Time . | . . . . . Total Robot Build Rating . | . . . . . Part Schematics Acquired . | . . . . . Parts Built . | . . . . . Authchips . | . . . . . Time . | . . . . . Total Part Build Rating . | . . . . . Part Studies Acquired . | . . . . . Parts Repaired . | . . . . . Time . | . . . . . Parts Recycled . | . . . . . Recycled Matter . | . . . . . Retrieved Matter . | . . . . . Retrieved Components . | . . . . . Parts Scanalyzed . | . . . . . Part Schematics Acquired . | . . . . . Parts Damaged . | . . . . . Bothacking | -11 -10 -10 -9 -6 ------------ Run | Yrd Mat Sub Scr Fac Used RIF Installer . | . . . . . Robots Hacked 1 | . . . . 1 Non-combat . | . . . . . Combat 1 | . . . . 1 Robot Hacks Applied 2 | . . . . 2 parse_system 2 | . . . . 2 Relay Couplers Released 4 | . . . . 4 Programmers 4 | . . . . 4 Fabnet Peak Effective % . | . . . . . Robots Rewired . | . . . . . Allies Hacked . | . . . . . Hacks Repelled . | . . . . . Allies | -11 -10 -10 -9 -6 -------- Run | Yrd Mat Sub Scr Fac Total Allies . | . . . . . Largest Group . | . . . . . Highest-Rated Group . | . . . . . Highest-Rated Ally . | . . . . . Initial UFD Resources 24 | . . . . 24 Total Orders . | . . . . . Ally Attacks . | . . . . . Total Damage . | . . . . . Kills . | . . . . . Allies Corrupted . | . . . . . Allies Melted . | . . . . . Intel | -11 -10 -10 -9 -6 ------- Run | Yrd Mat Sub Scr Fac Active Infowar (turns) 1964 | . . 99 . 1865 Optics 99 | . . 99 . . Sensors 1864 | . . . . 1864 Jamming 557 | . . . . 557 Robot Analysis Total . | . . . . . Derelict Logs Recovered 3 | . . 1 2 . Drone Launches . | . . . . . Drone Recoveries . | . . . . . Exploration | -11 -10 -10 -9 -6 ------------- Run | Yrd Mat Sub Scr Fac Turns Passed 4925 | 61 108 1318 879 2559 Spaces Moved 3071 | 52 84 927 801 1207 Core 50 | 2 . . . 48 Treads 251 | . . . . 251 Legs 591 | . . . . 591 Wheels 2179 | 50 84 927 801 317 Hover . | . . . . . Flight . | . . . . . Fastest Speed 50 | 50 100 90 90 50 Average Speed 123 | 98 100 101 106 153 Slowest Speed 750 | 100 100 115 120 750 Overloaded Moves . | . . . . . Propulsion Burnouts . | . . . . . Robots Hopped . | . . . . . Potential Cave-ins . | . . . . . Cave-ins Triggered . | . . . . . Exploration Rate (%) 32 | 4 16 73 50 18 Regions Visited 4 Branch Regions 2 Pre-discovered Areas 3 | . . 2 1 . Known Exits Taken . | . . . . . Unknown Exits Taken 4 | 1 1 1 1 . Scrap Searched 10 | . . 4 6 . Spaces Dug 9 | . . 7 . 2 Terrain Destroyed 66 | . . 23 . 43 Melee 7 | . . 7 . . Projectile 11 | . . . . 11 AOE 48 | . . 16 . 32 Terrain Rammed . | . . . . . Walls Destroyed . | . . . . . Machines Disabled . | . . . . . Actions | -11 -10 -10 -9 -6 --------- Run | Yrd Mat Sub Scr Fac Total 3944 | 59 108 1245 826 1706 Wait 573 | 2 21 251 7 292 Move 3067 | 51 83 926 800 1207 Hop . | . . . . . Pick Up 39 | . 4 12 8 15 Fast Attach 39 | 6 . 3 1 29 Attach 11 | . . . . 11 Detach 6 | . . . 2 4 Swap 27 | . . 14 2 11 Drop 29 | . . 12 6 11 Fire 101 | . . 5 . 96 Melee 40 | . . 22 . 18 Ram 1 | . . . . 1 Kick 4 | . . . . 4 Crush 4 | . . . . 4 Escape Stasis . | . . . . . Rewire . | . . . . . Trap . | . . . . . Miscellaneous 3 | . . . . 3 Route ------- -11/Scrapyard -10/Materials -10/Subcaves -9/Scraptown -6/Factory History --------- Turn | Location | Event 19 | -11/Scrapyard | Discovered new exit (range 16) 62 | -11/Scrapyard | Entered Materials 63 | -10/Materials | Met a group of wandering Federalists 134 | -10/Materials | Discovered new exit (range 6) 170 | -10/Materials | Entered Subcaves 171 | -10/Subcaves | Continued accompanying wandering Federalists (5) 204 | -10/Subcaves | Learned location of Zion (-6) 204 | -10/Subcaves | Met a Zionite searching for "candidates" 217 | -10/Subcaves | Shifting Twisted Machinery released Lgt. Humpback 310 | -10/Subcaves | Build established: Mutant 378 | -10/Subcaves | Wandering Federalist uncovered a shortcut to Scraptown 402 | -10/Subcaves | Lost 3 allies 481 | -10/Subcaves | Shifting Twisted Machinery released Multitool 482 | -10/Subcaves | Shifting Twisted Machinery released Sub. Optics 524 | -10/Subcaves | A swath of the cavern ceiling suddenly collapsed 791 | -10/Subcaves | Visited Clippyterm 794 | -10/Subcaves | Learned location of Extension (-6) 1220 | -10/Subcaves | Learned Materials emergency access door positions 1290 | -10/Subcaves | Visited 4L-MR0's lab 1313 | -10/Subcaves | Found Power Bank 1488 | -10/Subcaves | Entered Scraptown 1541 | -9/Scraptown | Visited TADAMA 1570 | -9/Scraptown | Visited Awakened 1596 | -9/Scraptown | Scanned Subdweller tech in exchange for log data 1597 | -9/Scraptown | Learned Factory interactive machine intel 1598 | -9/Scraptown | Learned location of Testing (-2) 1607 | -9/Scraptown | Heard Great Nut preacher, LISTEN AND RECITE! 1646 | -9/Scraptown | Visited Bundlers 1738 | -9/Scraptown | Visited Symbiants 1875 | -9/Scraptown | Visited UFD Registry 1875 | -9/Scraptown | Registered with UFD as "Plasmaripper" 1906 | -9/Scraptown | Visited A0-MCA Data Center 1913 | -9/Scraptown | Given a C rating by A0-MCA 1919 | -9/Scraptown | Found A0-MCA's Component Scanner 1943 | -9/Scraptown | Visited Junk Cannon Lab 1965 | -9/Scraptown | Visited Research Penetration Think Tank 2000 | -9/Scraptown | Found Prototype Special Weapon 2000 | -9/Scraptown | Identified Junk Cannon 2066 | -9/Scraptown | Delivered Scrap Shield to a Scientist 2197 | -9/Scraptown | Visited Scrap Suit Storage 2213 | -9/Scraptown | Visited Junk Repository 2286 | -9/Scraptown | Met Optimus 2286 | -9/Scraptown | Accepted into 0bPrime 2322 | -9/Scraptown | Visited Scrapoid Research Area 2331 | -9/Scraptown | Visited Scrapoid Pod Storage 2361 | -9/Scraptown | Discovered new exit (range 5) 2367 | -9/Scraptown | Entered Factory 2367 | -6/Factory | Evolved 8 slots: Power x1, Propulsion x2, Utility x5 2368 | -6/Factory | Loaded intel: 55 interactive machine locations 2719 | -6/Factory | Build established: Hacker-Mutant 3500 | -6/Factory | Core integrity fell below 50% 3525 | -6/Factory | Attached Power Bank, gained temporary slots: Power x3 3564 | -6/Factory | Lost 7 parts (2p1n1u3w) 3758 | -6/Factory | Cargo convoy interrupted 3881 | -6/Factory | Core integrity fell below 20% 3908 | -6/Factory | System corruption reached 10% 4926 | -6/Factory | Destroyed by H-66 Slayer with Gauss Rifle Last Messages --------------- 04909_ H-66 Slayer knocked back. 04912_ Penetrated by Slug. 04913_ H-66 Slayer destroyed. 04916_ Slug penetrates Wall. 04916_ Fission Core destroyed. 04919_ Acquired 2 matter. 04920_ Penetrated by Slug. 04920_ Flexi-carbon Leg destroyed. 04920_ Penetrated by Slug. 04921_ Acquired 27 matter. 04923_ Penetrated by Slug. 04923_ Assault Cannon destroyed. 04923_ Lgt. Angular Momentum Engine destroyed. 04924_ Jacked H-66 Slayer... >>parse_system Reading system data... 04926_ Jacked H-66 Slayer... >>parse_system Reading system data... 04926_ Penetrated by Slug. Map ----- +----------------------------------------------------+ | ###??????# #??????? #????????# #?????????????????? | | ??????# #??????? ?????????# #?????????????????? | | ?????# #?######+#######??# #?????????????????? | | ?????# #?# #??# #?????????????????? | | ????# #?# #??# #?????????????????? | | ????# #?# #??# #?????????????????? | | ?### ### #??# #???????? ????????? | | ?# + #??# #???????? ????????? | | # # #??# #???????? ????????? | | # + "" "" #??# #???????? ????????? | | + # "" "" #### #???????? ????????? | | # # """ """ + #???????? ????????? | | # # """ """ #### #???????? ????????? | | ######## # """ """ #??# #???????# #???????? | | # #??# #???????# #???????? | | ##############??#+######### #???????? | | """ # #??# # #???????? | | """ + """" """" #??# # #???????? | | """ # """" """" #??# # #???????? | | # """" """" #??# # #???????? | | """ # " " #??# # #???????? | | """ # % #??# """ """ # #???????? | | """ # """"% " #??# """ """ # #???????? | | # """" """ #### """ """ # #???????? | | # """" """" ########+##### #???????? | | # """" "" @h %k #???????? | | ##+########### % ######## #???????? | | # #???# % #?###??# %= ! #???????? | | # "" #???############+#??????# #???????? | | # """#??????????????# #??######## ######### | | # R"#??????????????# #??# # # # | | # """???????????????# #??# """ + % + """ # | | # ?????????????????# #??# """ # #### """ !# | | #? ??????????????????# #??# """ !# #??# """ # | | #?? ???????????????????# #??# # #??# # | | #???????????????????????? ???# # #??######### | | ????????????????????????? ???######## #??????????? | | ????????????????????????? ??????????# #??????????? | | ????????????????????????? ??????????# #??????????? | | ????????????????????????? ??????????# #??????????? | | ????????????????????????? ??????????# #??????????? | | ????????????????????????? ??????????# #??????????? | | ????????????????????????????????????# #??????????? | | ????????????????????????????????????# ??????????? | | ????????????????????????????????????# ??????????? | | ????????????????????????????????????? ??????????? | | ????????????????????????????????????? ??????????? | | ????????????????????????????????????? ??????????? | | ????????????????????????????????????? ??????????? | | ????????????????????????????????????? ??????????? | +----------------------------------------------------+ Best States ------------- Heat Dissipation 37 Energy Generation 38 Energy Capacity 360 Matter Stores 300 Matter Capacity 300 Sight Range 21 Robot Scan Range 16 Terrain Scan Density 10 Jamming Range 12 Armor Coverage 100 Evasion (%) 55 Targeting Accuracy 8 Target Analysis 5 Recoil Reduction 1 Particle Charging 20 Offensive Hacking 11 Defensive Hacking 12 Item Schematics ----------------- None Robot Schematics ------------------ None Fabricated ------------ Nothing Repaired ---------- Nothing Studied --------- None Alien Tech Used ----------------- None Achievements -------------- Strength In Numbers Challenges ------------ None Game ------ Seed CompositeStormCannon Manual? 0 Play Time 00:38:12 Cumulative 179.0 hours Start 2026.03.21 @ 10:11:24 End 2026.03.22 @ 17:28:49 Sessions 5 Manual Loads 0 Difficulty Rogue Special Mode None Game No. 302 Rogue 302 Adventurer 0 Explorer 0 Win Type - Total 1 Types 1/0/0/0/0/0/0/0/0/0 Lore% 56 Gallery% 57 Achievement% 40 Wizard Run 0 Options --------- Layout 1 ASCII 0 Keyboard 1 Movement Numpad Keybinds 0 Fullscreen 2 Font 24/Smallcaps Map View 50x35 Zoom Use 0% Tactical HUD 1 Map Filters NONE Filters NONE Steam 1 RUN: e2776152-2615-484f-a0d2-76fbb4002b6b